bitfinex/quotes_BTCUSD_20220306
["timestamp","ask_amount","ask_price","bid_price","bid_amount"]
[1646602418444,0.063973,39107.0,39102.0,0.003]
[1646602418843,0.68961655,39106.0,39102.0,0.003]
[1646602419043,0.55258516,39104.0,39102.0,0.003]
[1646602419344,0.60258516,39104.0,39102.0,0.003]
[1646602419542,0.063989,39103.0,39102.0,0.003]
[1646602419742,0.847457,39103.0,39102.0,0.003]
[1646602419942,0.547457,39103.0,39102.0,0.003]
[1646602420588,0.598657,39103.0,39102.0,0.003]
[1646602420992,0.898657,39103.0,39102.0,0.003]
[1646602421189,0.127986,39102.0,39097.0,0.00018652]
[1646602421389,0.063992,39100.0,39097.0,0.00018652]
[1646602421588,0.383468,39098.0,39097.0,0.00018652]
[1646602421789,0.05,39098.0,39097.0,0.00018652]
[1646602421990,0.05,39098.0,39096.0,0.05199999]
[1646602422189,0.113992,39100.0,39096.0,0.0521865]
[1646602422389,0.15295764,39097.0,39096.0,0.0521865]
[1646602423290,0.15295764,39097.0,39096.0,0.05199999]
[1646602425438,0.15281794,39097.0,39096.0,0.05199999]
[1646602427239,0.15281794,39097.0,39096.0,0.02699999]
[1646602428889,0.15405415,39097.0,39096.0,0.02699999]
[1646602429090,0.53752215,39097.0,39096.0,0.02699999]
[1646602429393,0.98752215,39097.0,39096.0,0.02699999]
[1646602429591,1.1,39096.0,39080.0,0.05]
[1646602429792,0.064011,39090.0,39080.0,0.05]
[1646602429990,0.064012,39088.0,39080.0,0.05]
[1646602430190,0.19843286,39085.0,39080.0,0.05]
[1646602430394,0.84688003,39088.0,39087.0,0.18649858]
[1646602430789,0.46341203,39088.0,39087.0,0.18649858]
[1646602431189,0.84688003,39088.0,39087.0,0.18649858]
[1646602431393,1.10292363,39088.0,39087.0,0.18649858]
[1646602432038,0.59143463,39088.0,39087.0,0.18649858]
[1646602432237,0.52742263,39088.0,39087.0,0.18649858]
[1646602436388,0.56530685,39088.0,39087.0,0.18649858]
[1646602437790,0.52742263,39088.0,39087.0,0.18649858]
[1646602439446,0.52925165,39088.0,39087.0,0.18649858]
[1646602440445,0.31623833,39088.0,39087.0,0.18649858]
[1646602441951,0.49473281,39088.0,39087.0,0.18649858]
[1646602445396,0.87820081,39088.0,39087.0,0.18649858]
[1646602445596,1.17820081,39088.0,39087.0,0.18649858]
[1646602446297,1.20615411,39088.0,39087.0,0.18649858]
[1646602447139,0.82254762,39088.0,39087.0,0.18649858]
[1646602447339,1.20601562,39088.0,39087.0,0.18649858]
[1646602447538,0.90601562,39088.0,39087.0,0.18649858]
[1646602448541,0.86806232,39088.0,39087.0,0.18649858]
[1646602448741,0.48459432,39088.0,39087.0,0.18649858]
[1646602451703,0.86806232,39088.0,39087.0,0.18649858]
[1646602451906,0.48459432,39088.0,39087.0,0.18649858]
[1646602452109,0.86806232,39088.0,39087.0,0.18649858]
[1646602452305,0.48459432,39088.0,39087.0,0.18649858]
[1646602452507,0.86806232,39088.0,39087.0,0.18649858]
[1646602452704,0.29820761,39088.0,39087.0,0.18649858]
[1646602452906,0.68167561,39088.0,39087.0,0.18649858]
[1646602453410,0.74568561,39088.0,39087.0,0.18649858]
[1646602453606,0.68167561,39088.0,39087.0,0.18649858]
[1646602453810,0.66069772,39088.0,39087.0,0.18649858]
[1646602456443,0.27722972,39088.0,39087.0,0.18649858]
[1646602458088,0.22722972,39088.0,39087.0,0.18649858]
[1646602458293,0.04873524,39088.0,39087.0,0.18649858]
[1646602458689,0.43220324,39088.0,39087.0,0.18649858]
[1646602459091,0.47144979,39088.0,39087.0,0.18649858]
[1646602459292,0.59532915,39088.0,39087.0,0.18649858]
[1646602459595,0.21186115,39088.0,39087.0,0.18649858]
[1646602460494,0.59532915,39088.0,39087.0,0.18649858]
[1646602460693,0.21186115,39088.0,39087.0,0.18649858]
[1646602461092,0.59532915,39088.0,39087.0,0.18649858]
[1646602461295,0.21186115,39088.0,39087.0,0.18649858]
[1646602461943,0.59532915,39088.0,39087.0,0.18649858]
[1646602462745,0.21186115,39088.0,39087.0,0.18649858]
[1646602462946,0.59532915,39088.0,39087.0,0.18649858]
[1646602463345,0.04873524,39088.0,39087.0,0.18649858]
[1646602463547,0.43220324,39088.0,39087.0,0.18649858]
[1646602464349,0.64683235,39088.0,39087.0,0.18649858]
[1646602464546,0.26336435,39088.0,39087.0,0.18649858]
[1646602464748,0.64683235,39088.0,39087.0,0.18649858]
[1646602466412,0.26336435,39088.0,39087.0,0.18649858]
[1646602467515,0.64683235,39088.0,39087.0,0.18649858]
[1646602467711,0.26336435,39088.0,39087.0,0.18649858]
[1646602468212,0.02075772,39088.0,39087.0,0.18649858]
[1646602468412,0.40422572,39088.0,39087.0,0.18649858]
[1646602469013,0.55705665,39088.0,39087.0,0.18649858]
[1646602469443,0.383582,39091.0,39090.0,0.99750256]
[1646602469944,0.511603,39091.0,39090.0,0.99750256]
[1646602470347,0.72078716,39091.0,39090.0,0.99750256]
[1646602471143,0.82078716,39091.0,39090.0,0.99750256]
[1646602472345,0.69276616,39091.0,39090.0,0.99750256]
[1646602473695,0.69429264,39091.0,39090.0,0.99998965]
[1646602474395,0.38510848,39091.0,39090.0,0.99998965]
[1646602475598,0.38510848,39091.0,39090.0,1.20329202]
[1646602476843,0.38510848,39091.0,39090.0,0.99998965]
[1646602478846,0.38510848,39091.0,39090.0,0.99876857]
[1646602479045,0.43510848,39091.0,39090.0,0.99876857]
[1646602485354,0.43010848,39091.0,39090.0,0.99876857]
[1646602490000,0.43010848,39091.0,39090.0,0.99376857]
[1646602491943,0.48130848,39091.0,39090.0,0.99376857]
[1646602492249,1.31910761,39091.0,39090.0,0.99376857]
[1646602492444,1.41910761,39091.0,39090.0,0.99376857]
[1646602492642,1.57677909,39091.0,39090.0,0.99376857]
[1646602492845,1.75017336,39091.0,39090.0,0.99376857]
[1646602493443,1.87819636,39091.0,39090.0,0.99376857]
[1646602494644,1.5194668,39091.0,39090.0,0.99376857]
[1646602495244,1.4682668,39091.0,39090.0,0.98876857]
[1646602496897,0.98919723,39091.0,39090.0,0.98876857]
[1646602499639,0.48919723,39091.0,39090.0,0.98876857]
[1646602499840,0.45908875,39091.0,39090.0,0.98876857]
[1646602500041,0.30141727,39091.0,39090.0,0.98876857]
[1646602501446,0.45141727,39091.0,39090.0,0.98876857]
[1646602504197,0.45141727,39091.0,39090.0,0.96303737]
[1646602504398,0.45269028,39091.0,39090.0,0.96303737]
[1646602507647,0.50389028,39091.0,39090.0,0.96303737]
[1646602508048,0.66185157,39091.0,39090.0,0.96303737]
[1646602509155,0.66185157,39091.0,39090.0,0.71303737]
[1646602509350,1.16185157,39091.0,39090.0,0.71303737]
[1646602512799,0.66185157,39091.0,39090.0,0.71303737]
[1646602513200,0.50389028,39091.0,39090.0,0.71303737]
[1646602513399,0.66185157,39091.0,39090.0,0.71303737]
[1646602517997,0.61065157,39091.0,39090.0,0.71303737]
[1646602521304,0.61065157,39091.0,39090.0,0.46303737]
[1646602522644,0.45269028,39091.0,39090.0,0.46303737]
[1646602522844,0.61065157,39091.0,39090.0,0.46303737]
[1646602523046,0.60565157,39091.0,39090.0,0.46303737]
[1646602528494,0.60565157,39091.0,39090.0,0.46385847]
[1646602533694,0.60565157,39091.0,39090.0,0.46177136]
[1646602535294,0.44769028,39091.0,39090.0,0.46177136]
[1646602541097,0.60565157,39091.0,39090.0,0.46177136]
[1646602542696,0.60590765,39091.0,39090.0,0.46177136]
[1646602543703,0.60463464,39091.0,39090.0,0.46167766]
[1646602549704,0.49562364,39091.0,39090.0,0.25649655]
[1646602549901,0.15796129,39091.0,39090.0,0.21369655]
[1646602550100,0.26889712,39092.0,39090.0,0.21369655]
[1646602550301,0.20488612,39092.0,39091.0,0.25]
[1646602550504,0.15796129,39098.0,39093.0,0.25]
[1646602550708,0.15796129,39101.0,39100.0,0.25]
[1646602550902,9.26e-05,39106.0,39100.0,0.87790454]
[1646602551203,9.26e-05,39106.0,39103.0,0.25]
[1646602551502,9.26e-05,39106.0,39104.0,0.063976]
[1646602551751,0.18534567,39110.0,39104.0,0.063976]
[1646602551950,0.00018666,39106.0,39104.0,0.063976]
[1646602552753,0.05018666,39106.0,39104.0,0.063976]
[1646602552951,0.04990605,39106.0,39104.0,0.063976]
[1646602554453,0.04990605,39106.0,39104.0,0.363976]
[1646602554653,0.04990605,39106.0,39104.0,0.063976]
[1646602556501,0.04956283,39106.0,39104.0,0.063976]
[1646602559006,0.04956283,39106.0,39104.0,0.363976]
[1646602559255,0.04956283,39106.0,39105.0,0.00140377]
[1646602559461,0.04956283,39106.0,39105.0,0.30140377]
[1646602561158,0.04956283,39106.0,39105.0,0.00140377]
[1646602568651,0.05072853,39106.0,39104.0,0.36537977]
[1646602569351,0.05072853,39106.0,39104.0,0.06537977]
[1646602569752,0.05072853,39106.0,39104.0,0.36537977]
[1646602569953,0.04724853,39106.0,39104.0,0.36537977]
[1646602570153,5.7e-06,39106.0,39104.0,0.36537977]
[1646602570397,5.7e-06,39106.0,39105.0,0.3]
[1646602572100,0.0500057,39106.0,39105.0,0.3]
[1646602572599,0.03614212,39106.0,39105.0,0.3]
[1646602573399,0.03614212,39106.0,39104.0,0.31537977]
[1646602573800,0.03739939,39106.0,39105.0,0.00148663]
[1646602578805,0.03739939,39106.0,39104.0,0.31546263]
[1646602579606,0.03739939,39106.0,39104.0,0.06546263]
[1646602580605,0.03739939,39106.0,39104.0,0.31546263]
[1646602580805,0.03739939,39106.0,39104.0,0.31534539]
[1646602592759,0.03739939,39106.0,39105.0,0.3]
[1646602593704,0.03739939,39106.0,39105.0,0.30148663]
[1646602595408,0.03739939,39106.0,39105.0,0.29148663]
[1646602596955,0.07584275,39107.0,39105.0,0.29148663]
[1646602596956,9.263e-05,39107.0,39105.0,0.29148663]
[1646602597157,9.263e-05,39107.0,39106.0,0.18043484]
[1646602597455,0.011729,39111.0,39108.0,0.441886]
[1646602597665,0.00081874,39115.0,39110.0,0.383562]
[1646602597859,0.00081874,39115.0,39113.0,0.27863]
[1646602598057,0.0011,39123.0,39120.0,0.313941]
[1646602598257,0.01106532,39123.0,39121.0,0.383562]
[1646602598456,0.00639722,39122.0,39120.0,0.395491]
[1646602598656,0.01106532,39123.0,39121.0,0.48688468]
[1646602598856,0.01106532,39123.0,39122.0,0.3]
[1646602599059,0.00639722,39123.0,39122.0,0.3]
[1646602599357,0.01158021,39126.0,39122.0,0.3]
[1646602599558,0.0022,39126.0,39122.0,0.3]
[1646602599759,0.0022,39126.0,39124.0,0.25]
[1646602599958,0.0022,39126.0,39125.0,0.3]
[1646602600162,0.00798286,39126.0,39125.0,0.3]
[1646602600410,0.00688286,39126.0,39125.0,0.3]
[1646602602011,0.0011,39126.0,39125.0,0.3]
[1646602602210,0.00688086,39126.0,39125.0,0.3]
[1646602602816,0.0022,39128.0,39127.0,0.25]
[1646602603014,0.0022,39128.0,39127.0,0.55]
[1646602603215,0.0011,39131.0,39128.0,0.7]
[1646602603414,0.0011,39131.0,39129.0,0.3]
[1646602604152,0.0011,39131.0,39130.0,0.19097206]
[1646602604355,0.00749468,39131.0,39130.0,0.49097206]
[1646602604957,0.0053,39135.0,39131.0,0.85]
[1646602605156,0.0053,39135.0,39132.0,0.3]
[1646602605358,0.06722339,39134.0,39132.0,0.3]
[1646602605553,0.0033,39134.0,39132.0,0.3]
[1646602607159,0.06611979,39137.0,39135.0,1.1]
[1646602607160,0.0011,39137.0,39135.0,1.1]
[1646602607361,0.14262217,39148.0,39137.0,1.1]
[1646602607362,0.00155061,39143.0,39137.0,1.1]
[1646602607560,0.0155534,39148.0,39142.0,0.25]
[1646602607561,0.02034347,39146.0,39142.0,0.25]
[1646602607902,0.02034347,39146.0,39143.0,0.3]
[1646602608098,0.02034286,39146.0,39144.0,0.1897911]
[1646602608303,0.02034286,39146.0,39145.0,0.3]
[1646602608498,0.02673689,39146.0,39145.0,0.3]
[1646602608800,0.02563689,39146.0,39145.0,0.933562]
[1646602608997,0.02563689,39146.0,39145.0,0.55]
[1646602609198,0.02563689,39146.0,39145.0,0.933562]
[1646602609498,0.00274286,39146.0,39145.0,0.633562]
[1646602609698,0.00015626,39149.0,39147.0,1.1]
[1646602609900,0.02180476,39150.0,39149.0,0.25]
[1646602610099,0.02180476,39150.0,39149.0,0.633562]
[1646602610508,0.01740476,39150.0,39149.0,0.55]
[1646602610698,0.01300476,39150.0,39149.0,0.55]
[1646602610898,0.00120644,39151.0,39150.0,0.95]
[1646602611097,0.00120644,39151.0,39150.0,1.25]
[1646602611299,0.07277311,39153.0,39150.0,1.31389]
[1646602611500,0.0022,39159.0,39153.0,0.5]
[1646602611757,0.02252857,39157.0,39154.0,0.55]
[1646602611956,0.0011,39159.0,39156.0,0.55]
[1646602612156,0.0011,39159.0,39154.0,0.55]
[1646602612358,0.02399048,39161.0,39156.0,0.063871]
[1646602612558,0.02399048,39161.0,39158.0,0.19990965]
[1646602612559,0.02179048,39161.0,39158.0,0.19990965]
[1646602612759,0.02069048,39161.0,39158.0,0.19990965]
[1646602613066,0.0011,39167.0,39163.0,1.1]
[1646602613067,0.0022,39166.0,39163.0,1.1]
[1646602613259,0.0033,39171.0,39166.0,0.25]
[1646602613458,0.0033,39171.0,39167.0,0.683562]
[1646602613661,0.02067619,39173.0,39168.0,1.483562]
[1646602613864,0.0011,39183.0,39171.0,1.35]
[1646602614063,0.0011,39183.0,39179.0,0.25]
[1646602614266,0.29065864,39195.0,39185.0,0.25]
[1646602614463,0.0261,39200.0,39191.0,0.25]
[1646602614464,0.0011,39200.0,39191.0,0.25]
[1646602614661,0.01053301,39197.0,39192.0,0.383562]
[1646602614859,0.01053301,39197.0,39193.0,0.20066498]
[1646602615058,0.01053301,39197.0,39194.0,0.383562]
[1646602615517,0.006087,39193.0,39185.0,0.0507558]
[1646602615721,0.006087,39193.0,39177.0,0.01274]
[1646602615722,0.382578,39185.0,39177.0,0.01274]
[1646602615919,0.382578,39185.0,39156.0,1.2329]
[1646602615920,0.15,39178.0,39156.0,1.2329]
[1646602616118,0.06388289,39171.0,39158.0,0.127758]
[1646602616311,0.01284737,39171.0,39159.0,0.01276]
[1646602616509,0.01284737,39171.0,39158.0,0.127758]
[1646602616510,0.00284737,39171.0,39158.0,0.127758]
[1646602616710,0.56034378,39172.0,39171.0,0.00569474]
[1646602616910,0.57724311,39172.0,39171.0,0.00569474]
[1646602617308,0.74256125,39172.0,39171.0,0.00569474]
[1646602617509,0.91689406,39172.0,39171.0,0.00569474]
[1646602617712,1.01276407,39172.0,39171.0,0.00569474]
[1646602617910,1.16276407,39172.0,39171.0,0.00569474]
[1646602618109,1.46276407,39172.0,39171.0,0.00569474]
[1646602618511,1.52664407,39172.0,39171.0,0.00569474]
[1646602619153,1.37664407,39172.0,39171.0,0.00569474]
[1646602619557,1.22664407,39172.0,39171.0,0.00569474]
[1646602619755,1.57784407,39172.0,39171.0,0.00569474]
[1646602620354,1.42784407,39172.0,39171.0,0.00569474]
[1646602620555,1.57784407,39172.0,39171.0,0.00569474]
[1646602620754,1.27784407,39172.0,39171.0,0.00569474]
[1646602620959,1.12784407,39172.0,39171.0,0.00569474]
[1646602622056,1.42784407,39172.0,39171.0,0.00569474]
[1646602622457,1.12784407,39172.0,39171.0,0.00569474]
[1646602622659,1.06396407,39172.0,39171.0,0.00569474]
[1646602624204,1.06719431,39172.0,39171.0,0.00761272]
[1646602625004,0.5102835,39172.0,39171.0,0.00761272]
[1646602625205,0.8928615,39172.0,39171.0,0.00761272]
[1646602626010,0.19496536,39172.0,39171.0,0.00761272]
[1646602626216,0.00323024,39172.0,39171.0,0.63960706]
[1646602626952,0.00384161,39179.0,39178.0,0.18503098]
[1646602627351,0.0512,39182.0,39178.0,0.48003098]
[1646602627352,0.11504837,39182.0,39178.0,0.48003098]
[1646602628353,0.16504837,39182.0,39178.0,0.48003098]
[1646602628759,0.16504837,39182.0,39178.0,0.18003098]
[1646602629155,0.16504837,39182.0,39178.0,0.48003098]
[1646602629352,0.36112736,39182.0,39178.0,0.48003098]
[1646602629752,0.16504837,39182.0,39178.0,0.48003098]
[1646602629953,0.16504837,39182.0,39178.0,0.18003098]
[1646602630154,0.16504837,39182.0,39177.0,0.06385]
[1646602630409,0.1277118,39181.0,39177.0,0.06385]
[1646602630808,0.17798419,39179.0,39177.0,0.06385]
[1646602631312,0.22798419,39179.0,39177.0,0.06385]
[1646602631911,0.05,39179.0,39177.0,0.06385]
[1646602632312,0.11353269,39180.0,39177.0,0.06385]
[1646602632512,0.17698589,39180.0,39177.0,0.06385]
[1646602633011,0.18228778,39179.0,39177.0,0.06385]
[1646602633211,0.0512,39178.0,39177.0,0.06385]
[1646602634014,0.0512,39178.0,39177.0,0.05885]
[1646602635751,0.23084628,39178.0,39177.0,0.05885]
[1646602636354,0.0512,39178.0,39177.0,0.05885]
[1646602639303,0.0512,39178.0,39177.0,0.06225091]
[1646602639902,0.0462,39178.0,39177.0,0.06225091]
[1646602642050,0.0462,39178.0,39177.0,0.05725091]
[1646602644161,0.0502023,39179.0,39177.0,0.73982891]
[1646602644162,0.05,39179.0,39177.0,0.73982891]
[1646602644454,0.05,39179.0,39178.0,0.3]
[1646602644455,0.0002023,39179.0,39178.0,0.3]
[1646602644652,0.0002023,39179.0,39178.0,0.682578]
[1646602645053,0.0002023,39179.0,39178.0,0.90437562]
[1646602645257,0.06383545,39190.0,39186.0,0.2185533]
[1646602645506,0.12767804,39189.0,39187.0,0.063836]
[1646602645907,0.06383545,39190.0,39187.0,0.063836]
[1646602646111,0.02394762,39196.0,39188.0,0.382578]
[1646602646309,0.02394762,39196.0,39195.0,0.17478742]
[1646602646507,0.02394762,39196.0,39195.0,0.47478742]
[1646602646709,0.02394762,39196.0,39195.0,0.85736542]
[1646602646907,0.02394762,39196.0,39195.0,0.682578]
[1646602647308,0.02394762,39196.0,39195.0,0.3]
[1646602647505,0.02394762,39196.0,39195.0,0.382578]
[1646602648106,0.02394762,39196.0,39194.0,0.063818]
[1646602648306,0.18036769,39196.0,39194.0,0.063818]
[1646602648706,0.23036769,39196.0,39194.0,0.063818]
[1646602650152,0.2436215,39196.0,39194.0,0.063818]
[1646602650353,0.07394762,39196.0,39194.0,0.063818]
[1646602650554,0.02394762,39196.0,39194.0,0.063818]
[1646602651357,0.22587885,39196.0,39194.0,0.063818]
[1646602651556,0.28971285,39196.0,39195.0,0.3]
[1646602651755,0.02394762,39196.0,39195.0,0.3]
[1646602651961,0.02394762,39196.0,39194.0,0.063818]
[1646602651962,0.40652562,39196.0,39194.0,0.063818]
[1646602652160,0.40652562,39196.0,39189.0,0.00167809]
[1646602652161,0.48496283,39195.0,39189.0,0.13135809]
[1646602652357,0.006087,39190.0,39189.0,0.00367809]
[1646602652557,0.057287,39190.0,39189.0,0.00367809]
[1646602652758,0.107287,39190.0,39189.0,0.00367809]
[1646602653411,0.2012,39190.0,39189.0,0.00167809]
[1646602653606,0.4,39189.0,39186.0,0.05558803]
[1646602653808,0.0512,39188.0,39186.0,0.05558803]
[1646602654008,0.433778,39187.0,39185.0,0.127692]
[1646602654307,0.057287,39186.0,39185.0,0.127692]
[1646602654512,0.057287,39186.0,39183.0,0.00020137]
[1646602654709,0.0512,39186.0,39183.0,0.00020137]
[1646602654906,0.0512,39186.0,39181.0,0.063859]
[1646602654907,0.19877236,39184.0,39181.0,0.063859]
[1646602655107,0.0512,39183.0,39181.0,0.063859]
[1646602655306,0.382578,39182.0,39181.0,0.063859]
[1646602655505,0.115057,39183.0,39182.0,0.17591468]
[1646602655506,0.069928,39183.0,39182.0,0.17591468]
[1646602655706,0.3157975,39183.0,39182.0,0.17591468]
[1646602655907,0.37965532,39183.0,39182.0,0.17591468]
[1646602658253,0.37358432,39183.0,39182.0,0.17591468]
[1646602659156,0.37965532,39183.0,39182.0,0.17591468]
[1646602659357,0.16595877,39183.0,39182.0,0.17591468]
[1646602659659,0.16595877,39183.0,39182.0,0.17763954]
[1646602660054,0.29367359,39183.0,39182.0,0.17763954]
[1646602660255,0.28760259,39183.0,39182.0,0.17763954]
[1646602660506,0.29367359,39183.0,39182.0,0.17763954]
[1646602661602,0.28867359,39183.0,39182.0,0.17763954]
[1646602662002,0.4,39182.0,39179.0,0.06386]
[1646602662206,0.0512,39181.0,39179.0,0.06386]
[1646602662406,0.17892103,39181.0,39179.0,0.06386]
[1646602664006,0.24278403,39181.0,39179.0,0.06386]
[1646602664867,0.24178403,39181.0,39179.0,0.06158]
[1646602667473,0.369941,39180.0,39178.0,0.00020253]
[1646602667668,0.3512,39179.0,39178.0,0.00020253]
[1646602667904,0.507271,39179.0,39178.0,0.00020253]
[1646602668303,0.78472812,39179.0,39174.0,0.127728]
[1646602668503,0.069945,39178.0,39171.0,0.00569474]
[1646602668708,0.21252224,39172.0,39171.0,0.00569474]
[1646602668904,0.26979324,39172.0,39170.0,0.063877]
[1646602669106,0.006071,39171.0,39170.0,0.063877]
[1646602669304,0.006071,39171.0,39168.0,0.127751]
[1646602669305,0.057271,39171.0,39168.0,0.127751]
[1646602669505,0.357271,39171.0,39168.0,0.127751]
[1646602669705,0.05,39169.0,39168.0,0.127751]
[1646602669905,0.107271,39169.0,39168.0,0.127751]
[1646602673276,0.107271,39169.0,39168.0,0.107751]
[1646602674179,0.10837428,39169.0,39168.0,0.1094034]
[1646602675803,0.10837428,39169.0,39168.0,0.0016524]
[1646602676405,0.16586143,39166.0,39164.0,0.1044164]
[1646602676605,0.0512,39165.0,39164.0,0.1044164]
[1646602678911,0.057271,39165.0,39164.0,0.1044164]
[1646602679160,0.057271,39165.0,39163.0,0.00021297]
[1646602679161,0.357271,39165.0,39163.0,0.00021297]
[1646602679357,0.17908998,39159.0,39153.0,0.05]
[1646602679554,0.0512,39158.0,39153.0,0.05]
[1646602679755,0.006071,39157.0,39153.0,0.05]
[1646602679954,0.006071,39155.0,39153.0,0.05]
[1646602680156,0.115103,39154.0,39153.0,0.05]
[1646602680359,0.121174,39154.0,39153.0,0.05]
[1646602680655,0.171174,39154.0,39153.0,0.05]
[1646602680857,0.471174,39154.0,39153.0,0.05]
[1646602681055,0.006071,39152.0,39149.0,0.001]
[1646602681256,0.0512,39151.0,39149.0,0.001]
[1646602681457,1.003423,39150.0,39131.0,0.2419]
[1646602681657,0.2742237,39134.0,39131.0,0.2419]
[1646602681855,0.05,39133.0,39130.0,0.127847]
[1646602682054,0.0512,39132.0,39131.0,0.38268]
[1646602682258,0.06119043,39133.0,39132.0,0.1024]
[1646602682912,0.11239043,39133.0,39132.0,0.1024]
[1646602683105,0.11239043,39133.0,39129.0,0.127852]
[1646602683106,0.85,39132.0,39129.0,0.1024]
[1646602683310,1.1,39130.0,39116.0,0.05]
[1646602683513,0.57123076,39129.0,39116.0,0.05]
[1646602683704,1.16073076,39129.0,39116.0,0.05]
[1646602683905,0.6395,39127.0,39118.0,0.16076963]
[1646602684109,0.05,39130.0,39121.0,0.00021812]
[1646602684110,0.26058624,39126.0,39121.0,0.00021812]
[1646602684307,0.0512,39125.0,39121.0,0.00021812]
[1646602684509,0.06051515,39127.0,39121.0,0.00021812]
[1646602684704,0.01051515,39127.0,39121.0,0.00021812]
[1646602685107,0.01051515,39127.0,39118.0,0.3]
[1646602685309,0.01051515,39127.0,39122.0,0.00021812]
[1646602685613,0.08239575,39126.0,39122.0,0.00021812]
[1646602685812,0.006071,39125.0,39122.0,0.00021812]
[1646602686010,0.3,39124.0,39117.0,0.3]
[1646602686212,0.08239575,39126.0,39118.0,0.001]
[1646602686408,0.006071,39125.0,39122.0,0.00021812]
[1646602687071,0.1555999,39124.0,39122.0,0.00021812]
[1646602687270,0.16203462,39123.0,39122.0,0.00021812]
[1646602687470,0.07002382,39122.0,39118.0,0.001]
[1646602687672,0.006071,39121.0,39118.0,0.001]
[1646602687870,0.07423328,39122.0,39118.0,0.001]
[1646602688070,0.07423328,39122.0,39116.0,0.113955]
[1646602688871,0.07423328,39122.0,39117.0,0.00010638]
[1646602689274,0.006071,39121.0,39117.0,0.00010638]
[1646602689473,0.19187076,39121.0,39117.0,0.00010638]
[1646602689677,0.056071,39120.0,39117.0,0.00010638]
[1646602689875,0.056071,39120.0,39116.0,0.05]
[1646602690072,0.056071,39120.0,39117.0,0.00020908]
[1646602690705,0.120038,39118.0,39117.0,0.00020908]
[1646602691100,0.17790736,39117.0,39116.0,0.05]
[1646602691302,0.17790736,39117.0,39116.0,0.05020908]
[1646602691704,0.07073825,39118.0,39116.0,0.73288908]
[1646602691906,0.00086881,39127.0,39117.0,0.83268]
[1646602692104,0.00086881,39127.0,39121.0,0.15]
[1646602692304,0.00086881,39127.0,39124.0,0.38268]
[1646602692505,0.00086881,39127.0,39126.0,0.53268]
[1646602692506,8.81e-06,39127.0,39126.0,0.53268]
[1646602692703,8.81e-06,39127.0,39126.0,0.98388]
[1646602694355,0.06391899,39139.0,39126.0,0.98388]
[1646602694563,0.06392206,39136.0,39130.0,0.38268]
[1646602694757,0.06392206,39136.0,39132.0,0.38268]
[1646602695356,0.06392206,39136.0,39132.0,0.68268]
[1646602695757,0.06392206,39136.0,39132.0,0.12785]
[1646602696758,0.2181216,39136.0,39132.0,0.12785]
[1646602697058,0.17983465,39133.0,39132.0,0.12785]
[1646602697458,0.22983465,39133.0,39132.0,0.12785]
[1646602697905,0.22983465,39133.0,39130.0,0.063922]
[1646602698714,0.22983465,39133.0,39128.0,0.127864]
[1646602698715,0.006071,39131.0,39128.0,0.127864]
[1646602698908,0.006071,39131.0,39126.0,0.004]
[1646602699110,0.12788857,39130.0,39126.0,0.004]
[1646602699309,0.19001104,39128.0,39126.0,0.004]
[1646602699508,0.19001104,39128.0,39118.0,0.3]
[1646602699509,0.21144681,39127.0,39118.0,0.3]
[1646602699707,0.15974845,39120.0,39114.0,0.3]
[1646602700110,0.20974845,39120.0,39114.0,0.3]
[1646602700309,0.20974845,39120.0,39117.0,0.38268]
[1646602700511,0.20974845,39120.0,39117.0,0.127899]
[1646602700914,0.20974845,39120.0,39117.0,0.12810176]
[1646602700915,0.27369969,39120.0,39117.0,0.12810176]
[1646602701112,0.27369969,39120.0,39117.0,0.00020276]
[1646602701511,0.17149441,39119.0,39117.0,0.00020276]
[1646602701960,0.17149441,39119.0,39108.0,0.47311601]
[1646602702160,0.17149441,39119.0,39116.0,0.05020276]
[1646602702367,0.070034,39118.0,39116.0,0.05020276]
[1646602702761,0.120034,39118.0,39116.0,0.05020276]
[1646602703060,0.120034,39118.0,39116.0,0.05]
[1646602703870,0.05,39118.0,39117.0,0.68268]
[1646602704065,0.05,39118.0,39117.0,0.3]
[1646602704762,0.05,39118.0,39116.0,0.05020276]
[1646602704763,0.11524448,39120.0,39116.0,0.26417414]
[1646602705405,0.11524448,39120.0,39116.0,0.26397138]
[1646602705606,0.11524448,39120.0,39116.0,0.56417414]
[1646602706205,0.11524448,39120.0,39116.0,0.26417414]
[1646602706411,0.11524448,39120.0,39116.0,0.56417414]
[1646602706606,0.11524448,39120.0,39116.0,0.56397138]
[1646602706906,0.11524448,39120.0,39116.0,0.26417414]
[1646602707104,0.11524448,39120.0,39116.0,0.05020276]
[1646602707906,0.11524448,39120.0,39116.0,0.05]
[1646602708106,0.11524448,39120.0,39116.0,0.05020276]
[1646602708306,0.11524448,39120.0,39116.0,0.35020276]
[1646602708808,0.11524448,39120.0,39116.0,0.05020276]
[1646602709009,0.11524448,39120.0,39116.0,0.05]
[1646602709256,0.11524448,39120.0,39116.0,0.05018731]
[1646602709456,0.11524448,39120.0,39118.0,0.00170594]
[1646602709856,0.06524448,39120.0,39119.0,0.38268]
[1646602710757,0.06524448,39120.0,39118.0,0.30189325]
[1646602711158,0.11524448,39120.0,39119.0,0.38268]
[1646602711758,0.11524448,39120.0,39118.0,0.30189325]
[1646602711959,0.11524448,39120.0,39119.0,0.38268]
[1646602712760,0.11524448,39120.0,39118.0,0.00170594]
[1646602713008,0.11524448,39120.0,39119.0,0.38268]
[1646602713206,0.11524448,39120.0,39118.0,0.00189325]
[1646602713809,0.11524448,39120.0,39119.0,0.00170443]
[1646602715609,0.08023689,39123.0,39119.0,0.00170443]
[1646602715809,0.05,39120.0,39119.0,0.00170443]
[1646602716008,0.01137866,39121.0,39119.0,0.00170443]
[1646602717059,0.06395124,39120.0,39119.0,0.00170443]
[1646602717255,0.11395124,39120.0,39119.0,0.00170443]
[1646602717555,0.30033979,39120.0,39119.0,0.00170443]
[1646602717759,0.30641079,39120.0,39119.0,0.00170443]
[1646602718356,0.31396276,39120.0,39119.0,0.00170443]
[1646602719362,0.315256,39120.0,39118.0,0.00388979]
[1646602719558,0.01362297,39119.0,39118.0,0.00388979]
[1646602719958,0.01362297,39119.0,39118.0,0.00370108]
[1646602721315,0.8,39117.0,39116.0,0.00018873]
[1646602721515,0.86362297,39117.0,39116.0,0.00018873]
[1646602721813,1.1360366,39117.0,39116.0,0.00018873]
[1646602722016,0.127962,39114.0,39105.0,0.00075515]